bitfinex-derivatives/quotes_BNBF0:USTF0_20250510
["timestamp","ask_amount","ask_price","bid_price","bid_amount"]
[1746848427638,0.30111865,664.19,662.98,0.92369121]
[1746848427840,0.30111865,664.19,663.0,0.30165912]
[1746848428034,0.30111865,664.19,663.01,0.92369121]
[1746848428231,0.30111865,664.19,663.03,0.30164547]
[1746848428436,0.30111865,664.19,663.04,0.92369121]
[1746848428633,0.30111865,664.19,663.06,0.30163182]
[1746848428831,0.30111865,664.19,663.07,0.92369121]
[1746848429031,0.30111865,664.19,662.78,0.26213899]
[1746848429032,0.30111865,664.19,663.09,0.30161818]
[1746848429238,0.30111865,664.19,663.1,0.92369121]
[1746848429438,0.30111865,664.19,663.11,0.92460063]
[1746848429637,0.30111865,664.19,663.12,0.92460063]
[1746848429940,0.30111865,664.19,663.14,0.30159543]
[1746848430138,0.30111865,664.19,663.15,0.92460063]
[1746848430338,0.30111865,664.19,663.17,0.30158179]
[1746848430539,0.30111865,664.19,663.18,0.92460063]
[1746848430740,0.30111865,664.19,663.19,0.92460063]
[1746848430941,0.30111865,664.19,663.2,0.92489636]
[1746848431137,0.30111865,664.19,663.22,0.30155906]
[1746848431441,0.30111865,664.19,663.23,0.92489636]
[1746848431642,0.30111865,664.19,663.24,0.92489636]
[1746848431843,0.30111865,664.19,663.25,1.22644178]
[1746848432036,0.30111865,664.19,663.26,0.92489636]
[1746848432241,0.30111865,664.19,663.28,0.30153178]
[1746848432437,0.30111865,664.19,663.29,0.92489636]
[1746848432637,0.30111865,664.19,663.31,0.30151814]
[1746848432840,0.30111865,664.19,663.32,0.92489636]
[1746848433036,0.30111865,664.19,663.33,0.92542163]
[1746848433240,0.30111865,664.19,663.34,0.92542163]
[1746848433541,0.30111865,664.19,663.35,0.92542163]
[1746848433741,0.30111865,664.19,663.36,1.22691704]
[1746848433937,0.30111865,664.19,663.37,0.92542163]
[1746848434142,0.30111865,664.19,663.38,0.92542163]
[1746848434444,0.30111865,664.19,663.39,0.92542163]
[1746848434741,0.30111865,664.19,663.36,0.30149541]
[1746848434742,0.30111865,664.19,663.4,0.92542163]
[1746848434943,0.30111865,664.19,663.41,0.92542163]
[1746848435142,0.30111865,664.19,663.42,0.92542163]
[1746848435343,0.30111865,664.19,663.43,1.22688523]
[1746848435543,0.30111865,664.19,663.44,1.22688069]
[1746848435744,0.30111865,664.19,663.45,0.92542163]
[1746848435945,0.30111865,664.19,663.46,1.2268716]
[1746848436139,0.30111865,664.19,663.47,0.92542163]
[1746848436339,0.30111865,664.19,663.48,0.92542163]
[1746848436540,0.30111865,664.19,663.49,0.92542163]
[1746848436745,0.30111865,664.19,663.5,0.92542163]
[1746848436944,0.30111865,664.19,663.51,0.92542163]
[1746848437143,0.30111865,664.19,663.52,0.92542163]
[1746848437343,0.30111865,664.19,663.46,0.30144997]
[1746848437344,0.30111865,664.19,663.53,0.92542163]
[1746848437546,0.30111865,664.19,663.54,0.92542163]
[1746848437739,0.30111865,664.19,663.55,0.92542163]
[1746848437939,0.30111865,664.19,663.56,0.92542163]
[1746848438243,0.30111865,664.19,663.57,0.92542163]
[1746848438440,0.30111865,664.19,663.58,0.9262304]
[1746848438651,0.30111865,664.19,663.46,0.30144997]
[1746848438843,0.30111865,664.19,663.47,0.92622095]
[1746848439043,0.30111865,664.19,663.48,1.22766183]
[1746848439242,0.30111865,664.19,663.49,1.22765729]
[1746848439445,0.30111865,664.19,663.5,1.22765275]
[1746848439642,0.30111865,664.19,663.51,0.92622095]
[1746848439841,0.30111865,664.19,663.52,0.92622095]
[1746848440043,0.30111865,664.19,663.53,0.92622095]
[1746848440243,0.30111865,664.19,663.54,0.92622095]
[1746848440446,0.30111865,664.19,663.55,0.92626208]
[1746848440647,0.30111865,664.19,663.56,0.92626208]
[1746848440843,0.30111865,664.19,663.57,0.92626208]
[1746848441047,0.30111865,664.19,663.58,0.92626208]
[1746848441342,0.30111865,664.19,663.59,0.92626208]
[1746848441548,0.30111865,664.19,663.5,0.3014318]
[1746848441850,0.30111865,664.19,663.51,0.92634798]
[1746848442043,0.30111865,664.19,663.52,0.92634798]
[1746848442247,0.30111865,664.19,663.53,0.92637772]
[1746848442443,0.30111865,664.19,663.5,0.3014318]
[1746848442643,0.30111865,664.19,663.51,0.92644361]
[1746848442843,0.30111865,664.19,663.5,0.3014318]
[1746848447655,0.30111865,664.19,663.51,0.9266009]
[1746848447851,0.30111865,664.19,663.5,0.3014318]
[1746848448159,0.30111865,664.19,663.51,0.92658906]
[1746848448357,0.30111865,664.19,663.52,0.92658906]
[1746848448552,0.30111865,664.19,663.5,0.3014318]
[1746848448753,0.30113679,664.15,663.31,0.289]
[1746848448949,0.54143253,664.15,663.31,0.289]
[1746848449356,0.24029574,664.14,663.31,0.289]
[1746848449657,0.30114585,664.13,663.31,0.289]
[1746848449849,0.56352795,664.13,663.31,0.289]
[1746848450256,0.24029574,664.12,663.31,0.289]
[1746848450554,0.30115492,664.11,663.31,0.289]
[1746848451255,0.24029574,664.1,663.31,0.289]
[1746848451656,0.30116399,664.09,663.31,0.289]
[1746848452055,0.24029574,664.08,663.31,0.289]
[1746848452255,0.30117306,664.07,663.31,0.289]
[1746848452751,0.24029574,664.06,663.31,0.289]
[1746848453358,0.30118213,664.05,663.31,0.289]
[1746848453858,0.24029574,664.04,663.31,0.289]
[1746848454260,0.30119121,664.03,663.31,0.289]
[1746848454960,0.24029574,664.02,663.31,0.289]
[1746848455461,0.30120028,664.01,663.31,0.289]
[1746848455665,0.56358633,664.01,663.31,0.289]
[1746848455861,0.24029574,664.0,663.31,0.289]
[1746848456662,0.24029574,664.0,663.31,0.562]
[1746848458961,0.26230991,663.99,663.31,0.562]
[1746848459363,0.24029574,663.98,663.31,0.562]
[1746848460362,0.30121842,663.97,663.31,0.562]
[1746848461666,0.26233858,663.96,663.31,0.562]
[1746848461863,0.3012275,663.95,663.31,0.562]
[1746848462062,0.54152324,663.95,663.31,0.273]
[1746848462258,0.24029574,663.94,663.31,0.273]
[1746848462560,0.30123657,663.93,663.31,0.273]
[1746848462960,0.24029574,663.92,663.31,0.273]
[1746848463968,0.30124565,663.91,663.31,0.273]
[1746848464365,0.24029574,663.9,663.31,0.273]
[1746848464567,0.30125472,663.89,663.31,0.273]
[1746848464767,0.24029574,663.88,663.31,0.273]
[1746848464961,0.3012638,663.87,663.31,0.273]
[1746848465367,0.24029574,663.86,663.31,0.273]
[1746848465569,0.30127287,663.85,663.31,0.273]
[1746848466067,0.24008376,663.84,663.31,0.273]
[1746848466268,0.30128195,663.83,663.31,0.273]
[1746848466768,0.24008376,663.82,663.31,0.273]
[1746848467067,0.30129103,663.81,663.31,0.273]
[1746848467568,0.24008376,663.8,663.31,0.273]
[1746848467867,0.3013001,663.79,663.31,0.273]
[1746848468062,0.24008376,663.78,663.31,0.273]
[1746848468268,0.30130918,663.77,663.31,0.273]
[1746848468767,0.24008376,663.76,663.31,0.273]
[1746848468969,0.54139748,663.76,663.31,0.273]
[1746848469570,0.24008376,663.75,663.31,0.273]
[1746848470870,0.26240584,663.74,663.31,0.273]
[1746848471270,0.24008376,663.73,663.31,0.273]
[1746848472773,0.30133188,663.72,663.31,0.273]
[1746848473373,0.24008376,663.71,663.31,0.273]
[1746848473869,0.26239595,663.7,663.31,0.273]
[1746848474770,0.24008376,663.69,663.31,0.273]
[1746848476874,0.26239792,663.68,663.31,0.273]
[1746848477374,0.24008376,663.67,663.31,0.273]
[1746848479673,0.24008376,663.71,663.31,0.273]
[1746848479874,0.26239792,663.66,663.31,0.273]
[1746848480374,0.24008376,663.65,663.31,0.273]
[1746848482676,0.30133188,663.72,663.31,0.273]
[1746848482876,0.50268555,663.64,663.31,0.273]
[1746848483076,0.24028763,663.64,663.31,0.273]
[1746848483277,0.24028763,663.63,663.31,0.273]
[1746848483470,0.24028763,663.71,663.31,0.273]
[1746848483983,0.26239792,663.7,663.31,0.273]
[1746848484678,0.24028763,663.69,663.31,0.273]
[1746848491690,0.24028763,663.71,663.31,0.273]
[1746848491892,0.262391,663.68,663.31,0.273]
[1746848493091,0.24028763,663.67,663.31,0.273]
[1746848494888,0.2623732,663.66,663.31,0.273]
[1746848496192,0.24007723,663.65,663.31,0.273]
[1746848497394,0.2623732,663.66,663.31,0.273]
[1746848497589,0.30133188,663.72,663.31,0.273]
[1746848497789,0.23987035,663.71,663.31,0.273]
[1746848497989,0.2623732,663.65,663.31,0.273]
[1746848502297,0.23999495,663.64,663.31,0.273]
[1746848502799,0.2623732,663.65,663.31,0.273]
[1746848503396,0.30133188,663.72,663.31,0.273]
[1746848504792,0.26234254,663.71,663.31,0.273]
[1746848506499,0.30133188,663.72,663.31,0.273]
[1746848506799,0.2623455,663.7,663.31,0.273]
[1746848509499,0.30133188,663.72,663.31,0.273]
[1746848509896,0.26241079,663.69,663.31,0.273]
[1746848512901,0.23995674,663.68,663.31,0.273]
[1746848513604,0.26241079,663.69,663.31,0.273]
[1746848518609,0.30133188,663.72,663.31,0.273]
[1746848527919,0.26230497,663.71,663.31,0.273]
[1746848530423,0.30133188,663.72,663.31,0.273]
[1746848539129,0.5421621,663.71,663.31,0.273]
[1746848539330,0.30134096,663.7,661.74,0.95104772]
[1746848539528,0.54216664,663.7,661.81,0.30220153]
[1746848539829,0.24082568,663.69,661.81,0.30220153]
[1746848540030,0.30135004,663.68,661.81,0.30220153]
[1746848540230,0.24082568,663.67,661.81,0.30220153]
[1746848540431,0.5421848,663.66,661.81,0.30220153]
[1746848540933,0.24082568,663.65,661.81,0.30220153]
[1746848541231,0.24082568,663.65,661.82,0.92077328]
[1746848541432,0.24082568,663.65,661.84,0.30218783]
[1746848541631,0.24082568,663.65,661.85,0.92077328]
[1746848541827,0.24082568,663.65,661.87,0.30217414]
[1746848542029,0.24082568,663.65,661.88,0.92019808]
[1746848542229,0.24082568,663.65,661.9,0.30216044]
[1746848542530,0.24082568,663.65,661.91,0.92019808]
[1746848542730,0.24082568,663.65,661.93,0.30214675]
[1746848542934,0.26258404,663.64,661.94,0.92019808]
[1746848543126,0.26258404,663.64,661.96,0.30213305]
[1746848543331,0.24082568,663.63,661.97,0.92019808]
[1746848543527,0.24082568,663.63,661.99,0.30211936]
[1746848543727,0.24082568,663.63,662.0,0.91945744]
[1746848543933,0.24082568,663.63,662.02,0.30210567]
[1746848544231,0.24082568,663.63,662.03,0.91945744]
[1746848544432,0.24082568,663.63,662.05,0.30209198]
[1746848544634,0.24082568,663.63,662.06,0.91945744]
[1746848544829,0.24082568,663.63,662.08,0.30207829]
[1746848548241,0.24082568,663.63,662.09,0.918051]
[1746848548442,0.24082568,663.63,662.08,0.30207829]
[1746848548635,0.24082568,663.63,662.09,0.91778231]
[1746848548940,0.26256125,663.62,662.1,0.91778231]
[1746848549141,0.50338693,663.62,662.11,1.21955949]
[1746848549342,0.26256125,663.62,662.13,0.30205548]
[1746848549535,0.24100413,663.61,662.14,0.91749488]
[1746848549739,0.24100413,663.61,662.16,0.3020418]
[1746848550037,0.24100413,663.61,662.17,0.91749488]
[1746848550238,0.24100413,663.61,662.19,0.30202811]
[1746848551940,0.26256324,663.6,662.19,0.30202811]
[1746848552543,0.24100413,663.59,662.19,0.30202811]
[1746848554842,0.26255036,663.58,662.19,0.30202811]
[1746848555245,0.24100413,663.57,662.19,0.30202811]
[1746848556544,0.26255036,663.58,662.19,0.30202811]
[1746848557048,0.24111838,663.57,662.19,0.30202811]
[1746848557448,0.30140908,663.55,662.19,0.30202811]
[1746848557948,0.30140908,663.55,661.88,0.279]
[1746848557949,0.24111838,663.54,661.88,0.279]
[1746848558549,0.24111838,663.53,661.88,0.279]
[1746848558847,0.24111838,663.52,661.88,0.279]
[1746848559048,0.30142725,663.51,661.88,0.279]
[1746848559748,0.24111838,663.5,661.88,0.279]
[1746848559942,0.30144088,663.48,661.88,0.279]
[1746848560644,0.24111838,663.47,661.88,0.279]
[1746848560949,0.30145451,663.45,661.88,0.279]
[1746848561342,0.24111838,663.44,661.88,0.279]
[1746848561545,0.30146814,663.42,661.88,0.279]
[1746848561942,0.30146814,663.42,661.89,0.30216501]
[1746848562143,0.24111838,663.41,661.89,0.30216501]
[1746848563850,0.30147723,663.4,661.89,0.30216501]
[1746848564849,0.24097549,663.39,661.89,0.30216501]
[1746848566946,0.26273768,663.38,661.89,0.30216501]
[1746848567351,0.24097549,663.37,661.89,0.30216501]
[1746848568353,0.30149541,663.36,661.89,0.30216501]
[1746848568553,0.24097549,663.35,661.89,0.30216501]
[1746848569356,0.3015045,663.34,661.89,0.30216501]
[1746848569856,0.50371813,663.33,661.89,0.30216501]
[1746848570260,0.24097549,663.32,661.89,0.30216501]
[1746848570756,0.24097549,663.32,661.9,0.265]
[1746848570951,0.24097549,663.32,661.91,0.30215588]
[1746848574955,0.24097549,663.32,661.92,0.24]
[1746848575757,0.24097549,663.32,661.93,0.30214675]
[1746848576159,0.26274264,663.33,661.93,0.30214675]
[1746848576654,0.24095842,663.32,661.93,0.30214675]
[1746848578758,0.26272181,663.31,661.93,0.30214675]
[1746848579454,0.24095842,663.3,661.93,0.30214675]
[1746848581763,0.24095842,663.33,661.93,0.30214675]
[1746848582766,0.26269405,663.32,661.93,0.30214675]
[1746848583159,0.24095842,663.31,661.93,0.30214675]
[1746848584867,0.26271388,663.3,661.93,0.30214675]
[1746848585467,0.24095842,663.29,661.93,0.30214675]
[1746848587569,0.24095842,663.33,661.93,0.30214675]
[1746848587863,0.26271388,663.28,661.93,0.30214675]
[1746848588367,0.24095842,663.27,661.93,0.30214675]
[1746848590868,0.26269801,663.26,661.93,0.30214675]
[1746848591268,0.24095842,663.25,661.93,0.30214675]
[1746848592768,0.24095842,663.25,661.93,0.55214675]
[1746848593971,0.26269603,663.24,661.93,0.55214675]
[1746848594469,0.24095842,663.23,661.93,0.55214675]
[1746848596974,0.26271289,663.22,661.93,0.55214675]
[1746848597274,0.24095842,663.21,661.93,0.55214675]
[1746848600078,0.24095842,663.33,661.93,0.55214675]
[1746848600675,0.26271487,663.32,661.93,0.55214675]
[1746848600877,0.24095842,663.31,661.93,0.55214675]
[1746848601171,0.30152268,663.3,661.93,0.55214675]
[1746848601678,0.24095842,663.29,661.93,0.55214675]
[1746848601876,0.30153178,663.28,661.93,0.55214675]
[1746848602377,0.24095842,663.27,661.93,0.25]
[1746848602777,0.30154542,663.25,661.93,0.25]
[1746848602977,0.24095842,663.24,661.93,0.25]
[1746848603274,0.24095842,663.23,661.93,0.25]
[1746848603577,0.3015636,663.21,661.93,0.25]
[1746848603977,0.24095842,663.2,661.93,0.25]
[1746848604172,0.30157724,663.18,661.93,0.25]
[1746848604478,1.89476654,662.81,661.93,0.25]
[1746848604879,2.19651213,662.81,661.93,0.25]
[1746848605180,0.24095842,662.8,661.93,0.25]
[1746848605877,0.26303755,662.79,661.93,0.25]
[1746848606176,0.24095842,662.78,661.93,0.25]
[1746848609280,0.26305843,662.77,661.93,0.25]
[1746848609783,0.24095842,662.76,661.93,0.25]
[1746848611775,0.24095842,662.8,661.93,0.25]
[1746848611981,0.26309324,662.75,661.93,0.25]
[1746848612383,0.56486615,662.75,661.93,0.25]
[1746848612880,0.24095842,662.74,661.93,0.25]
[1746848613385,0.30178202,662.73,661.93,0.25]
[1746848613976,0.24095842,662.72,661.93,0.25]
[1746848614176,0.30179113,662.71,661.93,0.25]
[1746848614484,0.24095842,662.7,661.93,0.25]
[1746848614682,0.30180023,662.69,661.93,0.25]
[1746848614883,0.56492231,662.69,661.93,0.25]
[1746848615183,0.24095842,662.68,661.93,0.25]
[1746848615384,0.30180934,662.67,661.93,0.25]
[1746848615984,0.24095842,662.66,661.93,0.25]
[1746848616383,0.30181845,662.65,661.93,0.25]
[1746848616583,0.30181845,662.65,661.93,0.532]
[1746848616780,0.24095842,662.64,661.93,0.532]
[1746848616985,0.54278143,662.64,661.93,0.532]
[1746848617386,0.54278598,662.63,661.93,0.532]
[1746848617585,0.30183212,662.62,661.93,0.532]
[1746848618687,0.30183212,662.62,661.93,0.282]
[1746848618882,0.26288257,662.61,661.93,0.282]
[1746848619385,0.30184123,662.6,661.93,0.282]
[1746848619788,0.54279965,662.6,661.93,0.282]
[1746848620890,0.26315491,662.59,661.93,0.282]
[1746848621189,0.50411333,662.59,661.93,0.282]
[1746848621386,0.24095842,662.58,661.93,0.282]
[1746848623886,0.26288157,662.57,661.93,0.282]
[1746848624391,0.24095842,662.56,661.93,0.282]
[1746848626194,0.26288157,662.57,661.93,0.282]
[1746848626489,0.30184123,662.6,661.93,0.282]
[1746848626793,0.24116856,662.56,661.93,0.282]
[1746848626985,0.5039241,662.59,661.93,0.282]
[1746848627186,0.24116856,662.58,661.93,0.282]
[1746848629794,0.24116856,662.59,661.93,0.282]
[1746848630795,0.26283988,662.58,661.93,0.282]
[1746848631294,0.24116856,662.57,661.93,0.282]
[1746848632788,0.24116856,662.59,661.93,0.282]
[1746848632993,0.26283988,662.56,661.93,0.282]
[1746848633192,0.24116856,662.55,661.93,0.282]
[1746848635893,0.26283988,662.54,661.93,0.282]
[1746848636593,0.24116856,662.53,661.93,0.282]
[1746848638898,0.26274066,662.52,661.93,0.282]
[1746848639199,0.24116856,662.51,661.93,0.282]
[1746848641704,0.24116856,663.68,661.93,0.282]
[1746848641903,0.2627238,662.5,661.93,0.282]
[1746848642098,0.24116856,663.67,661.93,0.282]
[1746848642300,0.30136367,663.65,661.93,0.282]
[1746848643003,0.50408092,663.64,661.93,0.282]
[1746848643300,0.30137729,663.62,661.93,0.282]
[1746848643604,0.24116856,663.61,661.93,0.282]
[1746848643905,0.24116856,663.6,661.93,0.282]
[1746848644306,0.24116856,663.61,661.93,0.282]
[1746848645006,0.24116856,663.61,661.93,0.563]
[1746848645208,0.30139091,663.59,661.93,0.563]
[1746848645811,0.26271388,663.58,661.93,0.563]
[1746848646209,0.30140454,663.56,661.93,0.563]
[1746848646611,0.24116856,663.55,661.93,0.563]
[1746848646810,0.30141817,663.53,661.93,0.563]
[1746848647011,0.24116856,663.52,661.93,0.563]
[1746848647213,0.3014318,663.5,661.93,0.563]
[1746848647912,0.24116856,663.49,661.93,0.563]
[1746848648110,0.30144543,663.47,661.93,0.563]
[1746848648510,0.24116856,663.46,661.93,0.563]
[1746848648810,0.30145906,663.44,661.93,0.563]
[1746848649113,0.24116856,663.43,661.93,0.563]
[1746848649413,0.30147269,663.41,661.93,0.563]
[1746848649915,0.24116856,663.4,661.93,0.563]
[1746848650213,0.30148632,663.38,661.93,0.563]
[1746848650814,0.24116856,663.37,661.93,0.563]
[1746848651114,0.30149996,663.35,661.93,0.563]
[1746848651708,0.24116856,663.34,661.93,0.563]
[1746848651914,0.30151359,663.32,661.93,0.563]
[1746848652108,0.24116856,663.31,661.93,0.563]
[1746848652313,0.30152723,663.29,661.93,0.563]
[1746848652813,0.24116856,663.28,661.93,0.563]
[1746848653011,0.30154087,663.26,661.93,0.563]
[1746848653412,0.24116856,663.25,661.93,0.563]
[1746848654019,0.30154996,663.24,661.93,0.563]
[1746848654420,0.24116856,663.23,661.93,0.563]
[1746848654621,0.30155906,663.22,661.93,0.563]
[1746848654818,0.56430269,663.22,661.93,0.563]
[1746848655319,0.24116856,663.21,661.93,0.563]
[1746848655519,0.3015727,663.19,661.93,0.563]
[1746848655821,0.24116856,663.18,661.93,0.563]
[1746848656024,0.30158179,663.17,661.93,0.563]
[1746848656722,0.24116856,663.16,661.93,0.563]
[1746848657022,0.30159089,663.15,661.93,0.563]
[1746848657415,0.24116856,663.14,661.93,0.563]
[1746848657620,0.30159998,663.13,661.93,0.563]
[1746848657922,0.24116856,663.12,661.93,0.563]
[1746848658124,0.30160908,663.11,661.93,0.563]
[1746848658922,0.24116856,663.1,661.93,0.563]
[1746848660825,0.2627357,663.09,661.93,0.563]
[1746848661327,0.24188535,663.08,661.93,0.563]
[1746848662722,0.24188535,663.1,661.93,0.563]
[1746848663828,0.26273768,663.09,661.93,0.563]
[1746848664326,0.24188535,663.08,661.93,0.563]
[1746848665726,0.24188535,663.1,661.93,0.563]
[1746848665927,0.26273768,663.07,661.93,0.563]
[1746848666424,0.24204731,663.06,661.93,0.563]
[1746848667428,0.24204731,663.05,661.93,0.563]
[1746848667727,0.26273768,663.07,661.93,0.563]
[1746848668130,0.24206734,663.06,661.93,0.563]
[1746848670132,0.24206734,663.06,661.93,0.86514675]
[1746848670338,0.24206734,663.06,661.94,0.30214218]
[1746848671932,0.26271388,663.05,661.94,0.30214218]
[1746848672327,0.26271388,663.05,661.95,0.351]
[1746848672735,0.24206734,663.04,661.95,0.351]
[1746848674730,0.24206734,663.1,661.95,0.351]
[1746848674935,0.26273669,663.03,661.95,0.351]
[1746848675736,0.26273669,663.03,661.96,0.365]
[1746848675737,0.24206734,663.02,661.96,0.365]
[1746848680740,0.24206734,663.1,661.96,0.365]
[1746848680940,0.2627238,663.01,661.96,0.365]
[1746848681141,0.24206734,663.1,661.96,0.365]
[1746848682044,0.2627238,663.09,661.96,0.365]
[1746848682542,0.24206734,663.08,661.96,0.365]
[1746848683839,0.26270396,663.07,661.96,0.365]
[1746848684243,0.24206734,663.06,661.96,0.365]
[1746848684842,0.26270396,663.07,661.96,0.365]
[1746848685338,0.24206329,663.06,661.96,0.365]
[1746848686740,0.2627,663.05,661.96,0.365]
[1746848687144,0.24206329,663.04,661.96,0.365]
[1746848689749,0.26270595,663.03,661.96,0.365]
[1746848689947,0.24206329,663.02,661.96,0.365]
[1746848692847,0.24206329,663.1,661.96,0.365]
[1746848693849,0.2627109,663.09,661.96,0.365]
[1746848694149,0.24206329,663.08,661.96,0.365]
[1746848698456,0.24206329,663.08,661.97,0.315]
[1746848699852,0.2627109,663.09,661.97,0.61712849]
[1746848700350,0.24245273,663.08,661.97,0.61712849]
[1746848701053,0.24245273,663.08,661.98,0.30212393]
[1746848701858,0.26260187,663.07,661.98,0.30212393]
[1746848702058,0.24245273,663.06,661.98,0.30212393]
[1746848703760,0.26260187,663.07,661.98,0.30212393]
[1746848704059,0.24284374,663.06,661.98,0.30212393]
[1746848706956,0.26260187,663.07,661.98,0.30212393]
[1746848707261,0.26260187,663.07,661.99,0.377]
[1746848707462,0.26260187,663.07,662.0,0.3021148]
[1746848708262,0.24308034,663.06,662.0,0.3021148]
[1746848710768,0.26261971,663.05,662.0,0.3021148]
[1746848711369,0.24306635,663.04,662.0,0.3021148]
[1746848713171,0.26261971,663.05,662.0,0.3021148]
[1746848713471,0.24310315,663.04,662.0,0.3021148]
[1746848714072,0.2626762,663.03,662.0,0.3021148]
[1746848714371,0.24310315,663.02,662.0,0.3021148]
[1746848714774,0.24310315,663.02,662.01,0.284]
[1746848716875,0.24310315,663.59,662.01,0.284]
[1746848717077,0.26267224,663.01,662.01,0.284]
[1746848717376,0.24310315,663.0,662.01,0.284]
[1746848717675,0.24310315,663.56,662.01,0.284]
[1746848717877,0.24310315,662.99,662.01,0.284]
[1746848718078,0.24310315,663.53,662.01,0.284]
[1746848718378,0.24310315,663.52,662.01,0.284]
[1746848718675,0.24310315,663.51,662.01,0.284]
[1746848718878,0.24310315,663.5,662.01,0.284]
[1746848719076,0.54453949,663.49,662.01,0.284]
[1746848719273,0.30144543,663.47,662.01,0.284]
[1746848719674,0.24310315,663.46,662.01,0.284]
[1746848719880,0.30145906,663.44,662.01,0.284]
[1746848720379,1.89476654,663.25,662.01,0.284]
[1746848720580,0.54468582,663.24,662.01,0.284]
[1746848720780,0.54469037,663.23,662.01,0.284]
[1746848720981,0.54469492,663.22,662.01,0.284]
[1746848721176,0.54469946,663.21,662.01,0.284]
[1746848721379,0.54470401,663.2,662.01,0.284]
[1746848721580,0.24313586,663.19,662.01,0.284]
[1746848722977,0.26269801,663.18,662.01,0.284]
[1746848723382,0.24313586,663.17,662.01,0.284]
[1746848725785,0.26270991,663.16,662.01,0.284]
[1746848726080,0.24313586,663.15,662.01,0.284]
[1746848727281,0.30159543,663.14,662.01,0.284]
[1746848727489,0.24313586,663.13,662.01,0.284]
[1746848727687,0.54473584,663.13,662.01,0.284]
[1746848727881,0.24313586,663.12,662.01,0.284]
[1746848728785,0.30160908,663.11,662.01,0.284]
[1746848728989,0.24313586,663.1,662.01,0.284]
[1746848729188,0.54475404,663.09,662.01,0.284]
[1746848729487,0.54475859,663.08,662.01,0.284]
[1746848729687,0.54476313,663.07,662.01,0.284]
[1746848729887,0.24313586,663.06,662.01,0.284]
[1746848730089,0.24313586,663.05,662.01,0.284]
[1746848730281,0.24313586,663.04,662.01,0.284]
[1746848730486,0.24313586,663.03,662.01,0.284]
[1746848730690,0.30162727,663.07,662.01,0.284]
[1746848730890,0.24354433,663.06,662.01,0.284]
[1746848731090,0.5451807,663.05,662.01,0.284]
[1746848731390,0.24354433,663.04,662.01,0.284]
[1746848731592,0.24354433,663.03,662.01,0.284]
[1746848731789,0.24354433,663.02,662.01,0.284]
[1746848731990,0.24354433,663.01,662.01,0.284]
[1746848732195,0.24354433,663.0,662.01,0.284]
[1746848732489,0.24354478,662.99,662.01,0.284]
[1746848732685,0.24354478,662.98,662.01,0.284]
[1746848732886,0.24354478,662.97,662.01,0.284]
[1746848733189,0.24354478,662.96,662.01,0.284]
[1746848733391,0.24354478,662.95,662.01,0.284]
[1746848733688,0.24354478,662.94,662.01,0.284]
[1746848733892,0.24354478,662.93,662.01,0.284]
[1746848734088,1.89476654,663.03,662.01,0.284]
[1746848734390,0.24356511,663.02,662.01,0.284]
[1746848734592,0.24356511,663.01,662.01,0.284]
[1746848734891,0.24356511,663.0,662.01,0.284]
[1746848735189,0.24356511,662.99,662.01,0.284]
[1746848735489,0.24356511,662.98,662.01,0.284]
[1746848735690,0.24356511,662.97,662.01,0.284]
[1746848735990,0.24356511,662.96,662.01,0.284]
[1746848736289,0.24356511,662.95,662.01,0.284]
[1746848736589,0.24356511,662.94,662.01,0.284]
[1746848737089,0.24356511,662.93,662.01,0.284]
[1746848737292,0.24356511,662.99,662.01,0.284]
[1746848737493,0.26275058,663.0,662.01,0.284]
[1746848737791,0.24339725,662.99,662.01,0.284]
[1746848737991,0.26270991,662.99,662.01,0.284]
[1746848738191,0.24339725,662.98,662.01,0.284]
[1746848740393,0.24339725,662.98,662.02,0.298]
[1746848740795,0.30163637,663.05,662.02,0.298]
[1746848740995,0.26270793,662.97,662.02,0.298]
[1746848741196,0.24344876,662.96,662.02,0.298]
[1746848741495,0.24344876,662.95,662.02,0.298]
[1746848741700,0.24344876,663.04,662.02,0.298]
[1746848742496,0.26270496,663.03,662.02,0.298]
[1746848742695,0.24346539,663.02,662.02,0.298]
[1746848745996,0.24346539,663.02,662.03,0.248]